[Event "*** Titled Tuesday Blitz"]
[Site "Chess.com"]
[Date "2021.03.09"]
[Round "7"]
[White "lagedema"]
[Black "kuba2006"]
[Result "0-1"]
[WhiteElo "2466"]
[BlackElo "2353"]
[TimeControl "180+1"]
[EndTime "11:21:22 PST"]
[Termination "kuba2006 won by resignation"]

1. e4 {[%clk 0:03:00.9]} 1... Nf6 {[%clk 0:03:00.9]} 2. e5 {[%clk 0:03:00.3]}
2... Nd5 {[%clk 0:03:01]} 3. c4 {[%clk 0:03:00.8]} 3... Nb6 {[%clk 0:03:00.7]}
4. a4 {[%clk 0:03:01.7]} 4... a5 {[%clk 0:02:59.8]} 5. Ra3 {[%clk 0:03:00.5]}
5... d6 {[%clk 0:02:55.9]} 6. exd6 {[%clk 0:02:59.5]} 6... cxd6 {[%clk
0:02:51.5]} 7. d4 {[%clk 0:02:53.5]} 7... g6 {[%clk 0:02:49.5]} 8. d5 {[%clk
0:02:53.8]} 8... Bg7 {[%clk 0:02:47.6]} 9. h4 {[%clk 0:02:54.7]} 9... h5 {[%clk
0:02:45.8]} 10. Nc3 {[%clk 0:02:50.1]} 10... O-O {[%clk 0:02:44.9]} 11. Nf3
{[%clk 0:02:48.3]} 11... Bg4 {[%clk 0:02:43.5]} 12. Be3 {[%clk 0:02:44.2]} 12...
N6d7 {[%clk 0:02:34.8]} 13. Be2 {[%clk 0:02:38.1]} 13... Na6 {[%clk 0:02:31.7]}
14. O-O {[%clk 0:02:37.9]} 14... Rc8 {[%clk 0:02:20.4]} 15. Nd2 {[%clk
0:02:15.2]} 15... Bxe2 {[%clk 0:02:15.2]} 16. Qxe2 {[%clk 0:02:16.1]} 16... Nb4
{[%clk 0:02:06.2]} 17. Rc1 {[%clk 0:02:12.4]} 17... Ne5 {[%clk 0:02:02.3]} 18.
Nb5 {[%clk 0:02:08.9]} 18... Qd7 {[%clk 0:01:37]} 19. Nf3 {[%clk 0:02:00]} 19...
Nxf3+ {[%clk 0:01:35.3]} 20. Qxf3 {[%clk 0:02:00.9]} 20... Bxb2 {[%clk
0:01:32.8]} 21. Rac3 {[%clk 0:01:53.3]} 21... Bxc1 {[%clk 0:01:29]} 22. Rxc1
{[%clk 0:01:51.8]} 22... Nd3 {[%clk 0:01:09.8]} 23. Rc3 {[%clk 0:01:46.6]} 23...
Ne5 {[%clk 0:01:08.4]} 24. Qe4 {[%clk 0:01:47.1]} 24... Qf5 {[%clk 0:01:01.5]}
25. Qd4 {[%clk 0:01:36.6]} 25... Qg4 {[%clk 0:00:47.4]} 26. Qxg4 {[%clk
0:01:13]} 26... hxg4 {[%clk 0:00:48.3]} 27. c5 {[%clk 0:01:12.9]} 27... dxc5
{[%clk 0:00:47.3]} 28. Bxc5 {[%clk 0:01:12.4]} 28... g3 {[%clk 0:00:15.6]} 29.
fxg3 {[%clk 0:01:09.8]} 29... Ng4 {[%clk 0:00:15.2]} 30. Bxe7 {[%clk 0:00:53.8]}
30... Rxc3 {[%clk 0:00:14.5]} 31. Nxc3 {[%clk 0:00:54.7]} 31... Rc8 {[%clk
0:00:14.1]} 32. Ne2 {[%clk 0:00:49.6]} 32... Rc2 {[%clk 0:00:13.6]} 33. Kf1
{[%clk 0:00:49.7]} 33... Ne3+ {[%clk 0:00:13.2]} 34. Ke1 {[%clk 0:00:50.1]}
34... Nxd5 {[%clk 0:00:12.7]} 35. Bd8 {[%clk 0:00:49.1]} 35... Ra2 {[%clk
0:00:11.9]} 36. Bxa5 {[%clk 0:00:47.6]} 36... Rxa4 {[%clk 0:00:12]} 37. Bd2
{[%clk 0:00:47.7]} 37... Ra1+ {[%clk 0:00:11.9]} 38. Kf2 {[%clk 0:00:46.7]}
38... b5 {[%clk 0:00:12.4]} 39. Kf3 {[%clk 0:00:47.3]} 39... Ra2 {[%clk
0:00:11.1]} 40. Be1 {[%clk 0:00:45.5]} 40... b4 {[%clk 0:00:11]} 41. Ke4 {[%clk
0:00:45.9]} 41... Rxe2+ {[%clk 0:00:10.4]} 42. Kxd5 {[%clk 0:00:45.8]} 42...
Rxe1 {[%clk 0:00:11.3]} 0-1

[Event "*** Titled Tuesday Blitz"]
[Site "Chess.com"]
[Date "2021.03.09"]
[Round "7"]
[White "KruHor"]
[Black "noblerone"]
[Result "1-0"]
[WhiteElo "2535"]
[BlackElo "2389"]
[TimeControl "180+1"]
[EndTime "11:21:23 PST"]
[Termination "KruHor won by resignation"]

1. e4 {[%clk 0:02:38.2]} 1... c5 {[%clk 0:02:59.6]} 2. Nf3 {[%clk 0:02:37.1]}
2... e6 {[%clk 0:02:59.5]} 3. c3 {[%clk 0:02:34.1]} 3... d5 {[%clk 0:02:59]} 4.
exd5 {[%clk 0:02:33.1]} 4... Qxd5 {[%clk 0:02:59.9]} 5. d4 {[%clk 0:02:32.6]}
5... Nf6 {[%clk 0:02:59.7]} 6. Bd3 {[%clk 0:02:31.9]} 6... Nc6 {[%clk
0:02:59.3]} 7. O-O {[%clk 0:02:31.3]} 7... Be7 {[%clk 0:02:59.1]} 8. Be3 {[%clk
0:02:27.6]} 8... O-O {[%clk 0:02:28.4]} 9. dxc5 {[%clk 0:02:23.7]} 9... Bxc5
{[%clk 0:02:27.7]} 10. Bxh7+ {[%clk 0:02:20.5]} 10... Kxh7 {[%clk 0:02:23.3]}
11. Qxd5 {[%clk 0:02:19.8]} 11... Nxd5 {[%clk 0:02:22.9]} 12. Bxc5 {[%clk
0:02:19.6]} 12... Rd8 {[%clk 0:02:22]} 13. Rd1 {[%clk 0:02:12.8]} 13... b6
{[%clk 0:02:18.8]} 14. Ba3 {[%clk 0:02:09.9]} 14... Bb7 {[%clk 0:02:16.2]} 15.
Nbd2 {[%clk 0:02:08.2]} 15... Nf4 {[%clk 0:02:11]} 16. Nc4 {[%clk 0:02:07.6]}
16... f6 {[%clk 0:01:57.6]} 17. Nd6 {[%clk 0:02:06.4]} 17... Ba6 {[%clk
0:01:50.6]} 18. c4 {[%clk 0:01:57]} 18... e5 {[%clk 0:01:46.2]} 19. b3 {[%clk
0:01:56.5]} 19... Ne2+ {[%clk 0:01:37.5]} 20. Kf1 {[%clk 0:01:54.9]} 20... Ned4
{[%clk 0:01:36.2]} 21. Nxd4 {[%clk 0:01:54.3]} 21... Nxd4 {[%clk 0:01:37.1]} 22.
Rd2 {[%clk 0:01:43.5]} 22... b5 {[%clk 0:01:24.1]} 23. Rad1 {[%clk 0:01:38.7]}
23... bxc4 {[%clk 0:01:23.3]} 24. bxc4 {[%clk 0:01:32.8]} 24... Rd7 {[%clk
0:01:15.3]} 25. Bc5 {[%clk 0:01:05.9]} 25... Ne6 {[%clk 0:01:15.2]} 26. Bb4
{[%clk 0:01:02.9]} 26... Nd4 {[%clk 0:01:13.5]} 27. Ke1 {[%clk 0:00:53.5]} 27...
Rc7 {[%clk 0:01:07.9]} 28. c5 {[%clk 0:00:52]} 28... Rb8 {[%clk 0:01:04.9]} 29.
a3 {[%clk 0:00:50.3]} 29... Kg6 {[%clk 0:00:56.1]} 30. f3 {[%clk 0:00:49.1]}
30... Rh8 {[%clk 0:00:54.3]} 31. h3 {[%clk 0:00:47.2]} 31... Rb8 {[%clk
0:00:53.3]} 32. Kf2 {[%clk 0:00:46.2]} 32... Rh8 {[%clk 0:00:50.3]} 33. Re1
{[%clk 0:00:45]} 33... Rb8 {[%clk 0:00:50]} 34. f4 {[%clk 0:00:44.2]} 34... Nc6
{[%clk 0:00:47.5]} 35. fxe5 {[%clk 0:00:42.5]} 35... Nxe5 {[%clk 0:00:48.4]} 36.
Kg1 {[%clk 0:00:40.6]} 36... Nc4 {[%clk 0:00:45.9]} 37. Rd4 {[%clk 0:00:38.7]}
37... Nxd6 {[%clk 0:00:40.7]} 38. cxd6 {[%clk 0:00:38.3]} 38... Rd7 {[%clk
0:00:41.3]} 39. Re7 {[%clk 0:00:36.5]} 39... Rbd8 {[%clk 0:00:40.9]} 40. Rg4+
{[%clk 0:00:35.5]} 40... Kf5 {[%clk 0:00:40.1]} 41. Rgxg7 {[%clk 0:00:35.1]}
41... Rxe7 {[%clk 0:00:37.8]} 42. Rxe7 {[%clk 0:00:33.1]} 42... Ra8 {[%clk
0:00:34.7]} 43. d7 {[%clk 0:00:31.2]} 43... Bb5 {[%clk 0:00:30.7]} 44. Ba5
{[%clk 0:00:30.8]} 1-0

[Event "*** Titled Tuesday Blitz"]
[Site "Chess.com"]
[Date "2021.03.09"]
[Round "7"]
[White "GM_LOADING"]
[Black "DanielDardha2005"]
[Result "1-0"]
[WhiteElo "2560"]
[BlackElo "2663"]
[TimeControl "180+1"]
[EndTime "11:21:26 PST"]
[Termination "GM_LOADING won by resignation"]

1. d4 {[%clk 0:03:00.9]} 1... Nf6 {[%clk 0:00:46.6]} 2. Nf3 {[%clk 0:02:57.1]}
2... g6 {[%clk 0:00:46.1]} 3. Bg5 {[%clk 0:02:56.4]} 3... Bg7 {[%clk 0:00:45.5]}
4. Nbd2 {[%clk 0:02:52.1]} 4... d5 {[%clk 0:00:44.3]} 5. e3 {[%clk 0:02:51.2]}
5... O-O {[%clk 0:00:42.2]} 6. Bd3 {[%clk 0:02:47.8]} 6... c5 {[%clk 0:00:40.3]}
7. c3 {[%clk 0:02:47.5]} 7... b6 {[%clk 0:00:39.8]} 8. O-O {[%clk 0:02:47.6]}
8... Ba6 {[%clk 0:00:39]} 9. Bxa6 {[%clk 0:02:46.9]} 9... Nxa6 {[%clk
0:00:39.9]} 10. Ne5 {[%clk 0:02:46.9]} 10... Qc8 {[%clk 0:00:38.7]} 11. f4
{[%clk 0:02:44.6]} 11... e6 {[%clk 0:00:37.7]} 12. Bxf6 {[%clk 0:02:41.6]} 12...
Bxf6 {[%clk 0:00:38.6]} 13. g4 {[%clk 0:02:35.1]} 13... Nc7 {[%clk 0:00:33.8]}
14. g5 {[%clk 0:02:28.8]} 14... Be7 {[%clk 0:00:27.8]} 15. Qg4 {[%clk
0:02:24.8]} 15... Ne8 {[%clk 0:00:27.4]} 16. Rf3 {[%clk 0:02:23.9]} 16... f5
{[%clk 0:00:25]} 17. gxf6 {[%clk 0:02:12.4]} 17... Nxf6 {[%clk 0:00:25.3]} 18.
Qg2 {[%clk 0:02:12.7]} 18... Qe8 {[%clk 0:00:21.1]} 19. Kh1 {[%clk 0:02:11.3]}
19... Bd6 {[%clk 0:00:20]} 20. Raf1 {[%clk 0:02:09.3]} 20... Qe7 {[%clk
0:00:18.1]} 21. Ng4 {[%clk 0:02:06.4]} 21... Nxg4 {[%clk 0:00:17.4]} 22. Qxg4
{[%clk 0:02:07.3]} 22... Rf5 {[%clk 0:00:17.7]} 23. Rg3 {[%clk 0:02:02.6]} 23...
cxd4 {[%clk 0:00:17.6]} 24. cxd4 {[%clk 0:02:02.5]} 24... Rc8 {[%clk 0:00:17.5]}
25. Nf3 {[%clk 0:01:59.2]} 25... Rc2 {[%clk 0:00:17.4]} 26. Rg2 {[%clk
0:01:59.7]} 26... Qc7 {[%clk 0:00:16.8]} 27. Rfg1 {[%clk 0:01:53.7]} 27... Rxg2
{[%clk 0:00:16.3]} 28. Qxg2 {[%clk 0:01:48.4]} 28... Qc4 {[%clk 0:00:14.8]} 29.
Ng5 {[%clk 0:01:32.8]} 29... Qc8 {[%clk 0:00:12.7]} 30. Nxh7 {[%clk 0:01:27.6]}
30... Qe8 {[%clk 0:00:13]} 31. Ng5 {[%clk 0:01:26.4]} 31... Qe7 {[%clk
0:00:10.7]} 32. Nf3 {[%clk 0:01:25.5]} 32... Qf6 {[%clk 0:00:07.4]} 33. Qxg6+
{[%clk 0:01:17.3]} 33... Qxg6 {[%clk 0:00:08.3]} 34. Rxg6+ {[%clk 0:01:17.8]}
34... Kf7 {[%clk 0:00:07.4]} 35. Rh6 {[%clk 0:01:17.8]} 35... Bf8 {[%clk
0:00:06]} 36. Ng5+ {[%clk 0:01:15.9]} 36... Rxg5 {[%clk 0:00:05]} 37. fxg5
{[%clk 0:01:15.9]} 37... Bxh6 {[%clk 0:00:05.9]} 38. gxh6 {[%clk 0:01:16.6]}
38... Kg6 {[%clk 0:00:06.6]} 39. Kg2 {[%clk 0:01:17.3]} 39... Kxh6 {[%clk
0:00:06.8]} 40. Kg3 {[%clk 0:01:17.2]} 40... Kg5 {[%clk 0:00:06.2]} 41. h4+
{[%clk 0:01:17.5]} 41... Kf5 {[%clk 0:00:06.7]} 42. Kf3 {[%clk 0:01:17.7]} 42...
e5 {[%clk 0:00:07]} 43. b3 {[%clk 0:01:09]} 43... a5 {[%clk 0:00:04]} 44. a4
{[%clk 0:01:08.2]} 44... exd4 {[%clk 0:00:02.3]} 45. exd4 {[%clk 0:01:08.1]}
45... Ke6 {[%clk 0:00:03.2]} 46. Kf4 {[%clk 0:01:06.9]} 46... Kf6 {[%clk
0:00:03.7]} 47. h5 {[%clk 0:01:07.3]} 47... Ke6 {[%clk 0:00:03.1]} 48. Kg5
{[%clk 0:01:07.7]} 48... Kf7 {[%clk 0:00:03]} 49. Kf5 {[%clk 0:01:08]} 49... Kg7
{[%clk 0:00:03]} 50. Ke5 {[%clk 0:01:08.6]} 50... Kh6 {[%clk 0:00:02.4]} 51.
Kxd5 {[%clk 0:01:09.3]} 51... Kxh5 {[%clk 0:00:02.9]} 52. Kc6 {[%clk 0:01:10]}
1-0

[Event "*** Titled Tuesday Blitz"]
[Site "Chess.com"]
[Date "2021.03.09"]
[Round "7"]
[White "BvsN"]
[Black "witcher8"]
[Result "1-0"]
[WhiteElo "2323"]
[BlackElo "2446"]
[TimeControl "180+1"]
[EndTime "11:21:27 PST"]
[Termination "BvsN won by resignation"]

1. c4 {[%clk 0:03:00.9]} 1... e5 {[%clk 0:02:59.6]} 2. Nc3 {[%clk 0:03:00.9]}
2... Nc6 {[%clk 0:03:00.1]} 3. Nf3 {[%clk 0:03:01.1]} 3... f5 {[%clk 0:02:59.9]}
4. g3 {[%clk 0:03:00.5]} 4... g6 {[%clk 0:02:59.6]} 5. d4 {[%clk 0:02:58]} 5...
e4 {[%clk 0:02:59.1]} 6. Nh4 {[%clk 0:02:52.8]} 6... Bg7 {[%clk 0:02:44.6]} 7.
e3 {[%clk 0:02:39.7]} 7... Nf6 {[%clk 0:02:41.5]} 8. Ng2 {[%clk 0:02:38.1]} 8...
O-O {[%clk 0:02:38.8]} 9. Nf4 {[%clk 0:02:37.4]} 9... Ne7 {[%clk 0:02:39]} 10.
h4 {[%clk 0:02:36.1]} 10... c6 {[%clk 0:02:34]} 11. Qb3 {[%clk 0:02:27.8]} 11...
Kh8 {[%clk 0:02:25.3]} 12. h5 {[%clk 0:02:20.3]} 12... g5 {[%clk 0:02:24.2]} 13.
h6 {[%clk 0:02:20.5]} 13... gxf4 {[%clk 0:02:17.7]} 14. hxg7+ {[%clk 0:02:20.7]}
14... Kxg7 {[%clk 0:02:18.6]} 15. gxf4 {[%clk 0:02:20.3]} 15... d5 {[%clk
0:02:18.7]} 16. Bd2 {[%clk 0:02:16.1]} 16... Qb6 {[%clk 0:02:16.7]} 17. Qc2
{[%clk 0:02:11.5]} 17... Be6 {[%clk 0:02:15]} 18. Na4 {[%clk 0:02:04.2]} 18...
Qc7 {[%clk 0:02:08]} 19. Nc5 {[%clk 0:02:01.5]} 19... Bf7 {[%clk 0:02:08.2]} 20.
cxd5 {[%clk 0:01:57.5]} 20... Nexd5 {[%clk 0:02:03.9]} 21. Bh3 {[%clk
0:01:50.8]} 21... b6 {[%clk 0:01:56.4]} 22. Nb3 {[%clk 0:01:45.9]} 22... Be6
{[%clk 0:01:56.3]} 23. O-O-O {[%clk 0:01:38.2]} 23... h5 {[%clk 0:01:50.6]} 24.
Rdg1+ {[%clk 0:01:25.1]} 24... Ng4 {[%clk 0:01:50.7]} 25. Bf1 {[%clk 0:01:22.6]}
25... Rh8 {[%clk 0:01:40]} 26. f3 {[%clk 0:00:56.6]} 26... exf3 {[%clk
0:01:35.7]} 27. e4 {[%clk 0:00:53.9]} 27... Nxf4 {[%clk 0:01:27.1]} 28. d5
{[%clk 0:00:33.5]} 28... fxe4 {[%clk 0:01:00.7]} 29. dxe6 {[%clk 0:00:21.7]}
29... Kf8 {[%clk 0:00:14.3]} 30. Qxe4 {[%clk 0:00:18.2]} 30... Ne2+ {[%clk
0:00:13.1]} 31. Bxe2 {[%clk 0:00:17.1]} 31... fxe2 {[%clk 0:00:14]} 32. Rxg4
{[%clk 0:00:15.3]} 32... hxg4 {[%clk 0:00:14.4]} 33. Rxh8+ {[%clk 0:00:15.1]}
33... Kg7 {[%clk 0:00:14.8]} 34. Rh7+ {[%clk 0:00:13.8]} 1-0

[Event "*** Titled Tuesday Blitz"]
[Site "Chess.com"]
[Date "2021.03.09"]
[Round "7"]
[White "TimKett"]
[Black "queen_iryna"]
[Result "1/2-1/2"]
[WhiteElo "2209"]
[BlackElo "2346"]
[TimeControl "180+1"]
[EndTime "11:21:27 PST"]
[Termination "Game drawn by agreement"]

1. e4 {[%clk 0:03:00.9]} 1... d6 {[%clk 0:02:59.8]} 2. d4 {[%clk 0:03:00.6]}
2... Nf6 {[%clk 0:03:00.3]} 3. Nc3 {[%clk 0:03:01.1]} 3... e5 {[%clk 0:03:00.1]}
4. Nf3 {[%clk 0:02:59.2]} 4... Nbd7 {[%clk 0:02:59.7]} 5. g4 {[%clk 0:02:59.2]}
5... d5 {[%clk 0:02:58.1]} 6. Nxe5 {[%clk 0:02:49.8]} 6... Bb4 {[%clk
0:02:29.3]} 7. exd5 {[%clk 0:02:13.5]} 7... Nxd5 {[%clk 0:02:30.2]} 8. Bd2
{[%clk 0:02:13.7]} 8... Nxe5 {[%clk 0:02:23.8]} 9. dxe5 {[%clk 0:02:11.6]} 9...
Nxc3 {[%clk 0:02:21.5]} 10. Bxc3 {[%clk 0:02:08.3]} 10... Qxd1+ {[%clk
0:02:19.1]} 11. Rxd1 {[%clk 0:02:07.9]} 11... Bxc3+ {[%clk 0:02:17.3]} 12. bxc3
{[%clk 0:02:07.1]} 12... Bxg4 {[%clk 0:02:17]} 13. Be2 {[%clk 0:02:07.5]} 13...
Be6 {[%clk 0:02:13.3]} 14. Bf3 {[%clk 0:01:56.3]} 14... c6 {[%clk 0:02:12.5]}
15. a3 {[%clk 0:01:51.1]} 15... Ke7 {[%clk 0:02:12.3]} 16. Rd4 {[%clk 0:01:48]}
16... Rhd8 {[%clk 0:02:06.7]} 17. Ke2 {[%clk 0:01:46.7]} 17... Bf5 {[%clk
0:01:50.7]} 18. Rb1 {[%clk 0:01:36.5]} 18... b6 {[%clk 0:01:22.8]} 19. Bxc6
{[%clk 0:01:21.9]} 19... Rac8 {[%clk 0:01:21.9]} 20. Rxd8 {[%clk 0:01:21.2]}
20... Kxd8 {[%clk 0:01:18.5]} 21. Rd1+ {[%clk 0:01:16]} 21... Ke7 {[%clk
0:01:16.1]} 22. Rd6 {[%clk 0:01:09.6]} 22... Rd8 {[%clk 0:01:09.4]} 23. Rxd8
{[%clk 0:01:07.3]} 23... Kxd8 {[%clk 0:01:10.3]} 24. Ke3 {[%clk 0:00:56.7]}
24... Bxc2 {[%clk 0:01:08.1]} 25. Kd4 {[%clk 0:00:55.7]} 25... Ke7 {[%clk
0:01:04.3]} 26. c4 {[%clk 0:00:51.1]} 26... g5 {[%clk 0:01:01]} 27. c5 {[%clk
0:00:48.7]} 27... Bb3 {[%clk 0:00:53.2]} 28. cxb6 {[%clk 0:00:47.8]} 28... axb6
{[%clk 0:00:52.8]} 29. Bd5 {[%clk 0:00:44.6]} 29... Ba4 {[%clk 0:00:49.6]} 30.
Ke4 {[%clk 0:00:43]} 30... Bc2+ {[%clk 0:00:48.4]} 31. Kd4 {[%clk 0:00:41.8]}
31... f6 {[%clk 0:00:43.2]} 32. Bc4 {[%clk 0:00:32.5]} 32... f5 {[%clk
0:00:20.4]} 33. Bd3 {[%clk 0:00:23.6]} 33... Bb3 {[%clk 0:00:19.3]} 34. Bxf5
{[%clk 0:00:22.9]} 34... h6 {[%clk 0:00:19.3]} 35. Be4 {[%clk 0:00:20.4]} 35...
Ke6 {[%clk 0:00:18.6]} 36. Bc6 {[%clk 0:00:14.6]} 36... Ba2 {[%clk 0:00:16.9]}
1/2-1/2

[Event "*** Titled Tuesday Blitz"]
[Site "Chess.com"]
[Date "2021.03.09"]
[Round "7"]
[White "Fore_Man"]
[Black "Vamostodorecto"]
[Result "1-0"]
[WhiteElo "2267"]
[BlackElo "2354"]
[TimeControl "180+1"]
[EndTime "11:21:27 PST"]
[Termination "Fore_Man won on time"]

1. d4 {[%clk 0:02:36.6]} 1... Nf6 {[%clk 0:02:58.6]} 2. c4 {[%clk 0:02:35.8]}
2... c5 {[%clk 0:02:59.1]} 3. d5 {[%clk 0:02:35.6]} 3... e6 {[%clk 0:02:59.7]}
4. Nc3 {[%clk 0:02:33.2]} 4... exd5 {[%clk 0:03:00.6]} 5. cxd5 {[%clk
0:02:33.2]} 5... d6 {[%clk 0:03:01.5]} 6. e4 {[%clk 0:02:28.8]} 6... g6 {[%clk
0:03:02.4]} 7. Nf3 {[%clk 0:02:28.1]} 7... Bg7 {[%clk 0:03:03]} 8. h3 {[%clk
0:02:28.7]} 8... O-O {[%clk 0:03:03.2]} 9. Bd3 {[%clk 0:02:29.2]} 9... a6 {[%clk
0:03:03]} 10. a4 {[%clk 0:02:28.5]} 10... Re8 {[%clk 0:03:03.3]} 11. O-O {[%clk
0:02:28.1]} 11... b6 {[%clk 0:02:58.4]} 12. Bg5 {[%clk 0:02:27.8]} 12... Ra7
{[%clk 0:02:57.9]} 13. Re1 {[%clk 0:02:25.6]} 13... Rae7 {[%clk 0:02:56.1]} 14.
Nd2 {[%clk 0:02:13.8]} 14... h6 {[%clk 0:02:54.9]} 15. Bf4 {[%clk 0:02:13.1]}
15... Nh5 {[%clk 0:02:33.6]} 16. Bh2 {[%clk 0:02:02.8]} 16... Nd7 {[%clk
0:02:18]} 17. Bxd6 {[%clk 0:02:00.6]} 17... Ne5 {[%clk 0:02:18.6]} 18. Bxe7
{[%clk 0:01:56.1]} 18... Qxe7 {[%clk 0:02:19.1]} 19. Be2 {[%clk 0:01:54.3]}
19... Nf4 {[%clk 0:02:07.3]} 20. Nf3 {[%clk 0:01:54]} 20... Nxf3+ {[%clk
0:02:02.1]} 21. Bxf3 {[%clk 0:01:53.1]} 21... Qg5 {[%clk 0:02:03]} 22. Kf1
{[%clk 0:01:51.9]} 22... Bd4 {[%clk 0:01:48.8]} 23. Ne2 {[%clk 0:01:46.1]} 23...
Bxh3 {[%clk 0:01:12.5]} 24. Nxf4 {[%clk 0:01:42.1]} 24... Qxf4 {[%clk
0:00:54.7]} 25. gxh3 {[%clk 0:01:41.2]} 25... Qh2 {[%clk 0:00:55.2]} 26. Bg2
{[%clk 0:01:39]} 26... Re5 {[%clk 0:00:53.5]} 27. Qf3 {[%clk 0:01:23.6]} 27...
Rg5 {[%clk 0:00:51.9]} 28. d6 {[%clk 0:01:22]} 28... Qxd6 {[%clk 0:00:50.9]} 29.
Rad1 {[%clk 0:01:18.2]} 29... Qe5 {[%clk 0:00:46.3]} 30. b3 {[%clk 0:01:14.7]}
30... b5 {[%clk 0:00:43.1]} 31. axb5 {[%clk 0:01:13.9]} 31... axb5 {[%clk
0:00:44]} 32. Re2 {[%clk 0:01:10.9]} 32... Kg7 {[%clk 0:00:41.5]} 33. Ra2 {[%clk
0:01:09.8]} 33... c4 {[%clk 0:00:38.9]} 34. bxc4 {[%clk 0:01:08.5]} 34... bxc4
{[%clk 0:00:38.8]} 35. Rad2 {[%clk 0:01:05.4]} 35... Bb6 {[%clk 0:00:27.6]} 36.
Rd7 {[%clk 0:01:03.5]} 36... Qe8 {[%clk 0:00:23.1]} 37. Rb7 {[%clk 0:01:02]}
37... Rb5 {[%clk 0:00:11.1]} 38. Qc3+ {[%clk 0:00:58.8]} 38... Kg8 {[%clk
0:00:09.3]} 39. Rdd7 {[%clk 0:00:59.2]} 39... Rb1+ {[%clk 0:00:08.7]} 40. Ke2
{[%clk 0:00:58.7]} 40... Ba5 {[%clk 0:00:04.1]} 41. Qxa5 {[%clk 0:00:53.3]}
41... Rxb7 {[%clk 0:00:03.9]} 42. Rxb7 {[%clk 0:00:53.9]} 42... Qxe4+ {[%clk
0:00:04]} 43. Bxe4 {[%clk 0:00:52.9]} 1-0

[Event "*** Titled Tuesday Blitz"]
[Site "Chess.com"]
[Date "2021.03.09"]
[Round "7"]
[White "canary2016"]
[Black "LubovMarkelova"]
[Result "0-1"]
[WhiteElo "2054"]
[BlackElo "2228"]
[TimeControl "180+1"]
[EndTime "11:21:27 PST"]
[Termination "LubovMarkelova won by checkmate"]

1. d4 {[%clk 0:03:00.9]} 1... d5 {[%clk 0:02:59.6]} 2. Bf4 {[%clk 0:02:59.5]}
2... c5 {[%clk 0:02:59.1]} 3. e3 {[%clk 0:02:59.5]} 3... Nf6 {[%clk 0:02:59.7]}
4. c3 {[%clk 0:02:59.3]} 4... Nc6 {[%clk 0:03:00]} 5. Nd2 {[%clk 0:02:59.2]}
5... Bf5 {[%clk 0:02:59.9]} 6. Ngf3 {[%clk 0:02:58.5]} 6... Qb6 {[%clk
0:02:59.9]} 7. Nh4 {[%clk 0:02:57.9]} 7... Bg4 {[%clk 0:02:49.5]} 8. Qb3 {[%clk
0:02:56.7]} 8... c4 {[%clk 0:02:48.8]} 9. Qc2 {[%clk 0:02:56.4]} 9... e6 {[%clk
0:02:39.8]} 10. h3 {[%clk 0:02:56]} 10... Bh5 {[%clk 0:02:39.5]} 11. g4 {[%clk
0:02:52.6]} 11... Bg6 {[%clk 0:02:39.5]} 12. Nxg6 {[%clk 0:02:52.5]} 12... hxg6
{[%clk 0:02:39.7]} 13. Bg2 {[%clk 0:02:52.9]} 13... Qd8 {[%clk 0:02:32.2]} 14.
O-O-O {[%clk 0:02:48]} 14... b5 {[%clk 0:02:29.9]} 15. e4 {[%clk 0:02:47.1]}
15... b4 {[%clk 0:02:15.4]} 16. exd5 {[%clk 0:02:46.5]} 16... exd5 {[%clk
0:02:08.6]} 17. Rhe1+ {[%clk 0:02:45.9]} 17... Be7 {[%clk 0:02:08.3]} 18. g5
{[%clk 0:02:45.8]} 18... Nh5 {[%clk 0:02:04.2]} 19. Bh2 {[%clk 0:02:38]} 19...
bxc3 {[%clk 0:01:54.6]} 20. Qxc3 {[%clk 0:02:36.1]} 20... O-O {[%clk 0:01:50.9]}
21. h4 {[%clk 0:02:32]} 21... Bb4 {[%clk 0:01:48]} 22. Qc2 {[%clk 0:02:31.7]}
22... Nxd4 {[%clk 0:01:45.7]} 23. Qb1 {[%clk 0:02:31.5]} 23... Rc8 {[%clk
0:01:36.8]} 24. Be5 {[%clk 0:02:25.8]} 24... Nb3+ {[%clk 0:01:20]} 25. axb3
{[%clk 0:02:16.9]} 25... cxb3+ {[%clk 0:01:20.1]} 26. Bc3 {[%clk 0:02:16.7]}
26... d4 {[%clk 0:01:19]} 27. Ne4 {[%clk 0:02:10.6]} 27... Bxc3 {[%clk 0:00:30]}
28. bxc3 {[%clk 0:01:57.1]} 28... Qb6 {[%clk 0:00:22.9]} 29. Qb2 {[%clk
0:01:52.3]} 29... Nf4 {[%clk 0:00:19.9]} 30. Bf3 {[%clk 0:01:45.2]} 30... Nd5
{[%clk 0:00:19.2]} 31. Rd3 {[%clk 0:01:02.2]} 31... dxc3 {[%clk 0:00:17.9]} 32.
Nxc3 {[%clk 0:01:01.7]} 32... Nb4 {[%clk 0:00:15.1]} 33. Rde3 {[%clk 0:00:58]}
33... Na2+ {[%clk 0:00:14.9]} 34. Kb1 {[%clk 0:00:57.5]} 34... Nxc3+ {[%clk
0:00:13]} 35. Rxc3 {[%clk 0:00:56.8]} 35... Rxc3 {[%clk 0:00:13.1]} 36. Qxc3
{[%clk 0:00:56.8]} 36... Qxf2 {[%clk 0:00:13.8]} 37. Rh1 {[%clk 0:00:47.3]}
37... Qa2+ {[%clk 0:00:12.5]} 38. Kc1 {[%clk 0:00:43.3]} 38... b2+ {[%clk
0:00:11.2]} 39. Qxb2 {[%clk 0:00:42.7]} 39... Rc8+ {[%clk 0:00:11.3]} 40. Kd1
{[%clk 0:00:35.7]} 40... Qxb2 {[%clk 0:00:11.6]} 41. Be4 {[%clk 0:00:30.4]}
41... Rc1# {[%clk 0:00:11.3]} 0-1